fUST/lending_fUST_20250717
["ID","MTS","AMOUNT","RATE_DAILY","PERIOD"]
[372656563,1752736240324,-749.46,0.00019177,2]
[372656564,1752736240334,-500.0,0.00019178,2]
[372656565,1752736240344,-500.0,0.00019178,2]
[372656566,1752736240353,-500.0,0.00019178,2]
[372656567,1752736240363,-500.0,0.00019178,2]
[372656568,1752736240372,-500.0,0.00019178,2]
[372656569,1752736240382,-338.84736078,0.00019178,2]
[372656570,1752736240393,-53979.3960775,0.00019178,2]
[372656571,1752736240403,-5000.0,0.00019178,2]
[372656572,1752736240412,-746.201212,0.00019178,2]
[372656573,1752736240422,-666.0,0.00019178,2]
[372656574,1752736240431,-168.0,0.00019203,2]
[372656575,1752736240441,-460.0,0.00019207,2]
[372656576,1752736240450,-460.0,0.00019208,2]
[372656577,1752736240459,-460.0,0.00019208,2]
[372656578,1752736240469,-460.0,0.00019208,2]
[372656579,1752736240479,-1730.44,0.00019208,2]
[372656580,1752736240488,-460.0,0.00019208,2]
[372656581,1752736240498,-460.0,0.0001921,2]
[372656582,1752736240508,-2711.28,0.0001921,2]
[372656583,1752736240517,-620.58,0.0001921,2]
[372656584,1752736240527,-4282.64,0.0001921,2]
[372656585,1752736240540,-460.0,0.0001921,2]
[372656586,1752736240549,-2149.34,0.0001921,2]
[372656587,1752736240559,-460.0,0.0001921,2]
[372656588,1752736240569,-460.0,0.0001921,2]
[372656590,1752736240579,-460.0,0.0001921,2]
[372656592,1752736240589,-1109.94,0.0001921,2]
[372656594,1752736240599,-1666.66,0.0001921,2]
[372656595,1752736240610,-500.27,0.0001921,2]
[372656596,1752736240620,-460.0,0.00019211,2]
[372656597,1752736240629,-500.0,0.00019211,2]
[372656598,1752736240640,-460.0,0.00019212,2]
[372656599,1752736240650,-460.0,0.00019215,2]
[372656600,1752736240659,-424.65534625,0.00019215,2]
[372656601,1752736240782,-35.34465375,0.00019215,2]
[372656602,1752736240792,-460.0,0.00019215,2]
[372656603,1752736240802,-460.0,0.00019215,2]
[372656604,1752736240811,-603.69,0.00019215,2]
[372656605,1752736240821,-549.63,0.00019215,2]
[372656606,1752736240831,-448.65584627,0.00019215,2]
[372656607,1752736240840,-460.0,0.00019215,2]
[372656608,1752736240850,-460.0,0.00019215,2]
[372656609,1752736240859,-460.0,0.00019215,2]
[372656610,1752736240869,-460.0,0.00019216,2]
[372656611,1752736240879,-460.0,0.00019216,2]
[372656612,1752736240890,-61.57601527,0.00019216,2]
[372656613,1752736241142,-398.42398473,0.00019216,2]
[372656614,1752736241152,-460.0,0.00019218,2]
[372656615,1752736241162,-460.0,0.00019218,2]
[372656616,1752736241172,-220.39088,0.00019218,2]
[372656617,1752736241183,-460.0,0.00019218,2]
[372656618,1752736241193,-544.11,0.00019218,2]
[372656619,1752736241203,-460.0,0.00019218,2]
[372656620,1752736241213,-500.01,0.00019218,2]
[372656621,1752736241222,-460.0,0.00019218,2]
[372656622,1752736241232,-40.53306408,0.00019218,2]
[372656623,1752736241244,-419.46693592,0.00019218,2]
[372656624,1752736241254,-204.7379802,0.00019218,2]
[372656625,1752736241265,-255.2620198,0.00019218,2]
[372656626,1752736241275,-460.0,0.00019218,2]
[372656627,1752736241285,-460.0,0.00019218,2]
[372656628,1752736241294,-578.5,0.00019218,2]
[372656629,1752736241303,-460.0,0.00019218,2]
[372656630,1752736241313,-559.42,0.00019218,2]
[372656631,1752736241323,-460.0,0.00019218,2]
[372656632,1752736241332,-460.0,0.00019218,2]
[372656633,1752736241342,-460.0,0.00019218,2]
[372656634,1752736241351,-460.0,0.00019218,2]
[372656635,1752736241362,-2696.28,0.00019218,2]
[372656636,1752736241372,-1198.96,0.00019218,2]
[372656637,1752736241381,-460.0,0.00019218,2]
[372656638,1752736241391,-460.0,0.00019218,2]
[372656639,1752736241400,-609.93,0.00019218,2]
[372656640,1752736241410,-726.41,0.00019218,2]
[372656641,1752736241419,-460.0,0.00019218,2]
[372656642,1752736241430,-471.63,0.00019218,2]
[372656643,1752736241441,-460.0,0.00019218,2]
[372656644,1752736241451,-484.16,0.00019218,2]
[372656645,1752736241463,-430.01438531,0.00019218,2]
[372656646,1752736241473,-460.0,0.00019218,2]
[372656647,1752736241482,-460.0,0.00019218,2]
[372656648,1752736241493,-460.0,0.00019218,2]
[372656649,1752736241503,-415.29628757,0.00019218,2]
[372656650,1752736241513,-1201.85,0.00019218,2]
[372656651,1752736241523,-613.55,0.00019218,2]
[372656652,1752736241534,-460.0,0.00019218,2]
[372656653,1752736241547,-587.44,0.00019218,2]
[372656654,1752736241557,-823.94,0.00019218,2]
[372656655,1752736241567,-409.50600542,0.00019218,2]
[372656656,1752736241578,-502.26,0.00019218,2]
[372656657,1752736241587,-2063.12,0.00019218,2]
[372656658,1752736241598,-460.0,0.00019218,2]
[372656659,1752736241608,-597.62802116,0.00019218,2]
[372656660,1752736241618,-460.0,0.00019218,2]
[372656661,1752736241628,-1892.76,0.00019218,2]
[372656662,1752736241638,-460.0,0.00019218,2]
[372656663,1752736241647,-460.0,0.00019218,2]
[372656664,1752736241657,-736.2,0.00019218,2]
[372656665,1752736241667,-460.0,0.00019218,2]
[372656666,1752736241676,-460.0,0.00019218,2]
[372656667,1752736241686,-1381.68,0.00019218,2]
[372656668,1752736241696,-460.0,0.00019218,2]
[372656669,1752736241705,-537.14,0.00019218,2]
[372656670,1752736241715,-2785.0,0.00019219,2]
[372656671,1752736241726,-939.41,0.00019219,2]
[372656672,1752736241735,-460.0,0.0001922,2]
[372656673,1752736241745,-460.0,0.0001922,2]
[372656674,1752736241754,-460.0,0.0001922,2]
[372656675,1752736241763,-460.0,0.0001922,2]
[372656676,1752736241773,-1000.0,0.00019221,2]
[372656677,1752736241782,-460.0,0.00019223,2]
[372656678,1752736241792,-634.35,0.00019223,2]
[372656679,1752736241801,-460.0,0.00019223,2]
[372656680,1752736241811,-460.0,0.00019228,2]
[372656681,1752736241820,-168.0,0.00019274,2]
[372656682,1752736241830,-151.57574545,0.00019278,2]
[372656683,1752736241840,-100000.0,0.00019329,2]
[372656684,1752736241849,-168.0,0.00019343,2]
[372656685,1752736241859,-5000.0,0.00019346,2]
[372656686,1752736241868,-270.21104171,0.00019348,2]
[372656687,1752736241878,-1000.0,0.00019348,2]
[372656688,1752736241888,-1000.0,0.00019368,2]
[372656689,1752736241898,-875.77260743,0.00019368,2]
[372656690,1752736241908,-1000.0,0.00019368,2]
[372656691,1752736241918,-1000.0,0.00019369,2]
[372656692,1752736241928,-1000.0,0.00019369,2]
[372656693,1752736241938,-1000.0,0.00019369,2]
[372656694,1752736241948,-504.20994792,0.00019373,2]
[372656695,1752736241957,-12225.84083745,0.00019383,2]
[372656696,1752736241966,-460.0,0.00019404,2]
[372656697,1752736241976,-168.0,0.00019408,2]
[372656698,1752736241986,-215.0738,0.0001948,2]
[372656699,1752736241996,-460.0,0.00019481,2]
[372656700,1752736242006,-460.0,0.00019482,2]
[372656701,1752736242016,-460.0,0.00019482,2]
[372656702,1752736242026,-460.0,0.00019482,2]
[372656703,1752736242035,-1730.44,0.00019482,2]
[372656704,1752736242045,-460.0,0.00019482,2]
[372656705,1752736242055,-2711.28,0.00019484,2]
[372656706,1752736242064,-620.58,0.00019484,2]
[372656707,1752736242074,-4282.64,0.00019484,2]
[372656708,1752736242084,-460.0,0.00019484,2]
[372656709,1752736242094,-2149.34,0.00019484,2]
[372656710,1752736242105,-460.0,0.00019484,2]
[372656711,1752736242115,-460.0,0.00019484,2]
[372656712,1752736242125,-1109.94,0.00019484,2]
[372656713,1752736242135,-1666.66,0.00019484,2]
[372656714,1752736242147,-500.27,0.00019484,2]
[372656715,1752736242157,-460.0,0.00019485,2]
[372656716,1752736242167,-500.0,0.00019485,2]
[372656717,1752736242177,-460.0,0.00019486,2]
[372656718,1752736242187,-2455.22216815,0.00019487,2]
[372656719,1752736242196,-460.0,0.00019489,2]
[372656720,1752736242206,-460.0,0.00019489,2]
[372656721,1752736242216,-460.0,0.00019489,2]
[372656722,1752736242226,-603.69,0.00019489,2]
[372656723,1752736242235,-549.63,0.00019489,2]
[372656724,1752736242244,-460.0,0.00019489,2]
[372656725,1752736242254,-460.0,0.00019489,2]
[372656726,1752736242264,-460.0,0.00019489,2]
[372656727,1752736242273,-460.0,0.0001949,2]
[372656728,1752736242283,-460.0,0.0001949,2]
[372656729,1752736242292,-460.0,0.0001949,2]
[372656730,1752736242302,-984.08,0.00019492,3]
[372656731,1752736242312,-492.04,0.00019492,3]
[372656732,1752736242322,-151.19962036,0.00019492,2]
[372656733,1752736242331,-460.0,0.00019492,2]
[372656734,1752736242341,-460.0,0.00019492,2]
[372656735,1752736242351,-544.11,0.00019492,2]
[372656736,1752736242361,-460.0,0.00019492,2]
[372656737,1752736242370,-500.01,0.00019492,2]
[372656738,1752736242379,-460.0,0.00019492,2]
[372656739,1752736242391,-300.34567584,0.00019492,2]
[372656740,1752736242400,-460.0,0.00019492,2]
[372656741,1752736242410,-460.0,0.00019492,2]
[372656742,1752736242419,-578.5,0.00019492,2]
[372656743,1752736242429,-559.42,0.00019492,2]
[372656744,1752736242438,-460.0,0.00019492,2]
[372656745,1752736242447,-473.0,0.00019492,2]
[372656746,1752736242457,-460.0,0.00019492,2]
[372656747,1752736242467,-2696.28,0.00019492,2]
[372656748,1752736242477,-1198.96,0.00019492,2]
[372656749,1752736242487,-460.0,0.00019492,2]
[372656750,1752736242497,-460.0,0.00019492,2]
[372656751,1752736242507,-609.93,0.00019492,2]
[372656752,1752736242517,-726.41,0.00019492,2]
[372656753,1752736242527,-605.37,0.00019492,2]
[372656754,1752736242546,-471.63,0.00019492,2]
[372656755,1752736242555,-168.96415465,0.00019492,2]
[372656756,1752736242565,-484.16,0.00019492,2]
[372656757,1752736242577,-460.0,0.00019492,2]
[372656758,1752736242589,-460.0,0.00019492,2]
[372656759,1752736242600,-1201.85,0.00019492,2]
[372656760,1752736242611,-613.55,0.00019492,2]
[372656761,1752736242621,-460.0,0.00019492,2]
[372656762,1752736242631,-587.44,0.00019492,2]
[372656763,1752736242643,-823.94,0.00019492,2]
[372656764,1752736242653,-502.26,0.00019492,2]
[372656765,1752736242663,-2047.94974875,0.00019492,2]
[372656766,1752736242676,-15.17025125,0.00019492,2]
[372656767,1752736242686,-460.0,0.00019492,2]
[372656768,1752736242696,-460.0,0.00019492,2]
[372656769,1752736242706,-1640.4506926,0.00019492,2]
[372656770,1752736242722,-252.3093074,0.00019492,2]
[372656771,1752736242731,-460.0,0.00019492,2]
[372656772,1752736242740,-460.0,0.00019492,2]
[372656773,1752736242750,-736.2,0.00019492,2]
[372656774,1752736242760,-460.0,0.00019492,2]
[372656775,1752736242769,-460.0,0.00019492,2]
[372656776,1752736242779,-1381.68,0.00019492,2]
[372656777,1752736242790,-460.0,0.00019492,2]
[372656778,1752736242800,-537.14,0.00019492,2]
[372656779,1752736242809,-2785.0,0.00019493,2]
[372656781,1752736242819,-939.41,0.00019493,2]
[372656782,1752736242828,-494.3,0.00019494,2]
[372656783,1752736242838,-460.0,0.00019494,2]
[372656784,1752736242848,-460.0,0.00019494,2]
[372656785,1752736242857,-460.0,0.00019494,2]
[372656786,1752736242867,-634.35,0.00019497,2]
[372656787,1752736242876,-1837.47,0.000195,2]
[372656788,1752736242886,-160.0,0.00019514,2]
[372656790,1752736243044,-168.0,0.00019521,2]
[372656791,1752736243054,-168.0,0.00019547,2]
[372656792,1752736243065,-168.0,0.00019559,2]
[372656793,1752736243076,-647.0,0.00019582,2]
[372656796,1752736243086,-2155.0,0.00019582,2]
[372656797,1752736243096,-968.0,0.00019582,2]
[372656798,1752736243106,-12225.84083745,0.00019624,2]
[372656799,1752736243116,-504.52302474,0.00019654,2]
[372656800,1752736243126,-460.0,0.00019678,2]
[372656801,1752736243135,-168.0,0.00019697,2]
[372656802,1752736243147,-168.0,0.00019704,2]
[372656803,1752736243157,-168.0,0.00019711,2]
[372656804,1752736243167,-500.0,0.00019712,2]
[372656805,1752736243177,-150.095,0.00019716,2]
[372656806,1752736243186,-224.39,0.00019716,2]
[372656807,1752736243196,-150.203,0.00019716,2]
[372656808,1752736243206,-150.461,0.00019716,2]
[372656809,1752736243216,-151.011,0.00019716,2]
[372656810,1752736243225,-245.588,0.00019716,2]
[372656811,1752736243235,-218.115,0.00019716,2]
[372656812,1752736243244,-460.0,0.00019755,2]
[372656813,1752736243254,-249.66,0.00019756,2]
[372656814,1752736243263,-460.0,0.00019756,2]
[372656815,1752736243272,-460.0,0.00019756,2]
[372656816,1752736243282,-1730.44,0.00019756,2]
[372656817,1752736243291,-2711.28,0.00019758,2]
[372656819,1752736243301,-620.58,0.00019758,2]
[372656820,1752736243310,-4282.64,0.00019758,2]
[372656821,1752736243320,-460.0,0.00019758,2]
[372656822,1752736243330,-2149.34,0.00019758,2]
[372656823,1752736243339,-460.0,0.00019758,2]
[372656824,1752736243349,-1109.94,0.00019758,2]
[372656825,1752736243359,-1666.66,0.00019758,2]
[372656826,1752736243368,-500.27,0.00019758,2]
[372656827,1752736243378,-420.0,0.00019758,2]
[372656828,1752736243388,-460.0,0.00019759,2]
[372656829,1752736243398,-500.0,0.00019759,2]
[372656830,1752736243408,-460.0,0.0001976,2]
[372656831,1752736243417,-460.0,0.00019763,2]
[372656832,1752736243428,-460.0,0.00019763,2]
[372656833,1752736243438,-603.69,0.00019763,2]
[372656834,1752736243447,-549.63,0.00019763,2]
[372656835,1752736243457,-460.0,0.00019763,2]
[372656836,1752736243467,-460.0,0.00019763,2]
[372656837,1752736243477,-460.0,0.00019763,2]
[372656838,1752736243487,-282.8024904,0.00019764,2]
[372656839,1752736243497,-460.0,0.00019764,2]
[372656840,1752736243507,-460.0,0.00019764,2]
[372656841,1752736243517,-460.0,0.00019766,2]
[372656842,1752736243527,-544.11,0.00019766,2]
[372656843,1752736243539,-460.0,0.00019766,2]
[372656844,1752736243550,-500.01,0.00019766,2]
[372656845,1752736243560,-460.0,0.00019766,2]
[372656846,1752736243570,-460.0,0.00019766,2]
[372656847,1752736243581,-534.92980233,0.00019766,2]
[372656848,1752736243591,-578.5,0.00019766,2]
[372656850,1752736243602,-559.42,0.00019766,2]
[372656852,1752736243611,-460.0,0.00019766,2]
[372656854,1752736243624,-460.0,0.00019766,2]
[372656856,1752736243633,-2696.28,0.00019766,2]
[372656858,1752736243643,-1198.96,0.00019766,2]
[372656860,1752736243652,-460.0,0.00019766,2]
[372656862,1752736243662,-460.0,0.00019766,2]
[372656864,1752736243672,-609.93,0.00019766,2]
[372656866,1752736243682,-726.41,0.00019766,2]
[372656868,1752736243692,-471.63,0.00019766,2]
[372656870,1752736243702,-484.16,0.00019766,2]
[372656872,1752736243711,-1201.85,0.00019766,2]
[372656874,1752736243720,-613.55,0.00019766,2]
[372656876,1752736243730,-460.0,0.00019766,2]
[372656878,1752736243741,-587.44,0.00019766,2]
[372656880,1752736243750,-823.94,0.00019766,2]
[372656881,1752736243760,-502.26,0.00019766,2]
[372656882,1752736243770,-2063.12,0.00019766,2]
[372656883,1752736243780,-460.0,0.00019766,2]
[372656884,1752736243790,-409.2,0.00019766,2]
[372656885,1752736243800,-1892.76,0.00019766,2]
[372656886,1752736243810,-460.0,0.00019766,2]
[372656887,1752736243820,-460.0,0.00019766,2]
[372656888,1752736243831,-736.2,0.00019766,2]
[372656889,1752736243847,-449.3,0.00019766,2]
[372656890,1752736243857,-460.0,0.00019766,2]
[372656891,1752736243866,-1381.68,0.00019766,2]
[372656892,1752736243876,-460.0,0.00019766,2]
[372656893,1752736243886,-537.14,0.00019766,2]
[372656894,1752736243897,-2785.0,0.00019767,2]
[372656895,1752736243907,-939.41,0.00019767,2]
[372656896,1752736243917,-460.0,0.00019768,2]
[372656897,1752736243927,-237.16714679,0.00019768,2]
[372656898,1752736243936,-1500.0,0.00019768,2]
[372656899,1752736243946,-634.35,0.00019771,2]
[372656900,1752736243957,-151.0,0.00019775,2]
[372656901,1752736243968,-168.0,0.00019775,2]
[372656902,1752736243977,-151.0,0.00019776,2]
[372656903,1752736243987,-151.0,0.00019776,2]
[372656904,1752736243996,-151.0,0.00019776,2]
[372656905,1752736244006,-151.0,0.00019776,2]
[372656906,1752736244015,-151.0,0.00019776,2]
[372656907,1752736244025,-179.9820018,0.00019797,2]
[372656908,1752736244034,-151.0,0.000198,2]
[372656909,1752736244044,-1680.0,0.00019855,2]
[372656910,1752736244054,-12225.84083745,0.00019866,2]
[372656911,1752736244064,-1500.0,0.00019896,2]
[372656912,1752736244074,-151.0,0.000199,2]
[372656913,1752736244083,-320.15973591,0.00019916,2]
[372656914,1752736244093,-1500.0,0.00019916,2]
[372656915,1752736244102,-1525.15971395,0.00019917,2]
[372656916,1752736244112,-1500.0,0.00019917,2]
[372656917,1752736244121,-1500.0,0.00019917,2]
[372656918,1752736244131,-300.40023785,0.0002,2]
[372656919,1752736244140,-151.71316108,0.0002,2]
[372656920,1752736244150,-2000.0,0.0002,14]
[372656921,1752736244159,-2000.0,0.0002,14]
[372656922,1752736244169,-168.0,0.00020003,2]
[372656923,1752736244179,-517.94,0.00020029,2]
[372656924,1752736244188,-460.0,0.0002003,2]
[372656925,1752736244198,-460.0,0.0002003,2]
[372656926,1752736244207,-1730.44,0.0002003,2]
[372656927,1752736244218,-2711.28,0.00020032,2]
[372656928,1752736244227,-620.58,0.00020032,2]
[372656929,1752736244237,-4282.64,0.00020032,2]
[372656930,1752736244247,-460.0,0.00020032,2]
[372656931,1752736244258,-2149.34,0.00020032,2]
[372656932,1752736244267,-460.0,0.00020032,2]
[372656933,1752736244277,-1109.94,0.00020032,2]
[372656934,1752736244287,-1666.66,0.00020032,2]
[372656935,1752736244296,-500.27,0.00020032,2]
[372656936,1752736244306,-460.0,0.00020033,2]
[372656937,1752736244315,-500.0,0.00020033,2]
[372656938,1752736244325,-466.39004785,0.00020034,2]
[372656939,1752736244335,-358.65009087,0.00020037,2]
[372656940,1752736244345,-603.69,0.00020037,2]
[372656941,1752736244354,-549.63,0.00020037,2]
[372656942,1752736244364,-460.0,0.00020037,2]
[372656943,1752736244373,-460.0,0.00020037,2]
[372656944,1752736244383,-460.0,0.00020037,2]
[372656945,1752736244393,-460.0,0.00020038,2]
[372656946,1752736244402,-460.0,0.00020038,2]
[372656947,1752736244412,-460.0,0.0002004,2]
[372656948,1752736244421,-544.11,0.0002004,2]
[372656949,1752736244432,-460.0,0.0002004,2]
[372656950,1752736244446,-500.01,0.0002004,2]
[372656951,1752736244456,-460.0,0.0002004,2]
[372656952,1752736244465,-460.0,0.0002004,2]
[372656953,1752736244475,-578.5,0.0002004,2]
[372656954,1752736244484,-559.42,0.0002004,2]
[372656955,1752736244493,-460.0,0.0002004,2]
[372656956,1752736244503,-460.0,0.0002004,2]
[372656957,1752736244512,-2696.28,0.0002004,2]
[372656958,1752736244522,-1198.96,0.0002004,2]
[372656959,1752736244531,-460.0,0.0002004,2]
[372656960,1752736244544,-460.0,0.0002004,2]
[372656961,1752736244553,-609.93,0.0002004,2]
[372656962,1752736244563,-726.41,0.0002004,2]
[372656963,1752736244572,-471.63,0.0002004,2]
[372656964,1752736244582,-484.16,0.0002004,2]
[372656965,1752736244592,-1201.85,0.0002004,2]
[372656966,1752736244601,-613.55,0.0002004,2]
[372656967,1752736244611,-460.0,0.0002004,2]
[372656968,1752736244621,-587.44,0.0002004,2]
[372656969,1752736244631,-823.94,0.0002004,2]
[372656970,1752736244640,-502.26,0.0002004,2]
[372656971,1752736244650,-2063.12,0.0002004,2]
[372656972,1752736244659,-460.0,0.0002004,2]
[372656973,1752736244668,-1892.76,0.0002004,2]
[372656974,1752736244678,-444.56,0.0002004,2]
[372656975,1752736244687,-460.0,0.0002004,2]
[372656976,1752736244698,-736.2,0.0002004,2]
[372656977,1752736244707,-460.0,0.0002004,2]
[372656978,1752736244717,-1381.68,0.0002004,2]
[372656979,1752736244727,-460.0,0.0002004,2]
[372656980,1752736244736,-537.14,0.0002004,2]
[372656981,1752736244745,-2785.0,0.00020041,2]
[372656982,1752736244755,-939.41,0.00020041,2]
[372656983,1752736244764,-460.0,0.00020042,2]
[372656984,1752736244774,-634.35,0.00020045,2]
[372656985,1752736244783,-260.0,0.00020062,2]
[372656986,1752736244792,-168.0,0.00020068,2]
[372656987,1752736244802,-151.0,0.000201,3]
[372656988,1752736244811,-12225.84083745,0.00020107,2]
[372656989,1752736244821,-168.0,0.00020108,2]
[372656990,1752736244831,-767.690841,0.00020187,2]
[372656991,1752736244840,-168.0,0.00020198,2]
[372656992,1752736244850,-327.95618655,0.00020241,2]
[372656993,1752736244860,-460.0,0.00020304,2]
[372656994,1752736244869,-460.0,0.00020304,2]
[372656995,1752736244879,-1730.44,0.00020304,2]
[372656996,1752736244890,-2711.28,0.00020306,2]
[372656997,1752736244899,-620.58,0.00020306,2]
[372656998,1752736244909,-4282.64,0.00020306,2]
[372656999,1752736244919,-460.0,0.00020306,2]
[372657000,1752736244928,-2149.34,0.00020306,2]
[372657001,1752736244937,-460.0,0.00020306,2]
[372657002,1752736244946,-1109.94,0.00020306,2]
[372657003,1752736244956,-1666.66,0.00020306,2]
[372657004,1752736244966,-500.27,0.00020306,2]
[372657005,1752736244975,-460.0,0.00020307,2]
[372657006,1752736244984,-500.0,0.00020307,2]
[372657007,1752736244993,-603.69,0.00020311,2]
[372657008,1752736245003,-549.63,0.00020311,2]
[372657009,1752736245013,-460.0,0.00020311,2]
[372657010,1752736245023,-460.0,0.00020311,2]
[372657011,1752736245033,-460.0,0.00020311,2]
[372657012,1752736245042,-460.0,0.00020312,2]
[372657013,1752736245052,-460.0,0.00020312,2]
[372657014,1752736245061,-460.0,0.00020314,2]
[372657015,1752736245071,-544.11,0.00020314,2]
[372657016,1752736245080,-460.0,0.00020314,2]
[372657017,1752736245090,-500.01,0.00020314,2]
[372657018,1752736245099,-460.0,0.00020314,2]
[372657019,1752736245108,-578.5,0.00020314,2]
[372657020,1752736245118,-559.42,0.00020314,2]
[372657021,1752736245128,-460.0,0.00020314,2]
[372657022,1752736245137,-460.0,0.00020314,2]
[372657023,1752736245146,-2696.28,0.00020314,2]
[372657024,1752736245157,-1198.96,0.00020314,2]
[372657025,1752736245166,-460.0,0.00020314,2]
[372657026,1752736245176,-460.0,0.00020314,2]
[372657027,1752736245186,-609.93,0.00020314,2]
[372657028,1752736245195,-726.41,0.00020314,2]
[372657029,1752736245205,-471.63,0.00020314,2]
[372657030,1752736245215,-484.16,0.00020314,2]
[372657031,1752736245225,-1201.85,0.00020314,2]
[372657032,1752736245236,-613.55,0.00020314,2]
[372657033,1752736245246,-460.0,0.00020314,2]
[372657034,1752736245256,-587.44,0.00020314,2]
[372657035,1752736245266,-823.94,0.00020314,2]
[372657036,1752736245276,-502.26,0.00020314,2]
[372657037,1752736245285,-2063.12,0.00020314,2]
[372657038,1752736245295,-460.0,0.00020314,2]
[372657039,1752736245305,-1892.76,0.00020314,2]
[372657040,1752736245314,-460.0,0.00020314,2]
[372657041,1752736245324,-736.2,0.00020314,2]
[372657042,1752736245333,-460.0,0.00020314,2]
[372657043,1752736245342,-1381.68,0.00020314,2]
[372657044,1752736245352,-460.0,0.00020314,2]
[372657045,1752736245362,-537.14,0.00020314,2]
[372657046,1752736245371,-2785.0,0.00020315,2]
[372657047,1752736245381,-939.41,0.00020315,2]
[372657048,1752736245391,-460.0,0.00020316,2]
[372657049,1752736245400,-2000.0,0.00020316,2]
[372657050,1752736245410,-634.35,0.00020319,2]
[372657051,1752736245419,-189.144052,0.00020324,2]
[372657052,1752736245428,-189.144052,0.00020324,2]
[372657053,1752736245438,-151.0,0.00020324,2]
[372657054,1752736245447,-151.0,0.00020324,2]
[372657055,1752736245456,-151.0,0.00020324,2]
[372657056,1752736245466,-151.0,0.00020324,2]
[372657057,1752736245476,-151.0,0.00020324,2]
[372657058,1752736245486,-151.0,0.00020324,2]
[372657059,1752736245497,-151.0,0.00020324,2]
[372657060,1752736245506,-168.0,0.00020348,2]
[372657061,1752736245516,-12225.84083745,0.00020348,3]
[372657062,1752736245526,-476.16111942,0.0002035,3]
[372657063,1752736245539,-160.0,0.0002035,3]
[372657064,1752736245550,-12607.95677342,0.0002035,3]
[372657065,1752736245560,-214.44804168,0.0002035,3]
[372657066,1752736245569,-2455.22216815,0.00020403,2]
[372657067,1752736245579,-2000.0,0.00020444,2]
[372657068,1752736245588,-152.10688042,0.0002045,2]
[372657069,1752736245598,-158.12741437,0.0002045,2]
[372657070,1752736245608,-158.41884808,0.0002045,2]
[372657071,1752736245619,-500.0,0.0002045,2]
[372657072,1752736245629,-2000.0,0.00020464,2]
[372657073,1752736245638,-1993.06818654,0.00020465,2]
[372657074,1752736245647,-2000.0,0.00020465,2]
[372657075,1752736245657,-154.384347,0.00020521,2]
[372657076,1752736245666,-189.801666,0.00020568,2]
[372657077,1752736245676,-460.0,0.00020578,2]
[372657078,1752736245686,-460.0,0.00020578,2]
[372657079,1752736245696,-1730.44,0.00020578,2]
[372657080,1752736245706,-2711.28,0.0002058,2]
[372657081,1752736245716,-620.58,0.0002058,2]
[372657082,1752736245725,-4282.64,0.0002058,2]
[372657083,1752736245736,-460.0,0.0002058,2]
[372657084,1752736245746,-2149.34,0.0002058,2]
[372657085,1752736245757,-460.0,0.0002058,2]
[372657086,1752736245766,-1109.94,0.0002058,2]